Cogmind - Beta 12 @@@ ROGUE MODE // 2023.03.12 @ 12:45:01 Player: kasaphescent Result: Destroyed by as-98472 with Assembled Rifle Performance ------------- Evolutions (0) 0 Regions Visited (4) 800 Robots Destroyed (17) 85 Value Destroyed (343) 343 Prototype IDs (23) 460 Alien Tech Used (0) 0 Bonus (300) 300 TOTAL SCORE: 1988 Bonus ------- Aligned with FarCom 300 Cogmind --------- Core Integrity 0/250 Matter 232/300 Energy 98/100 System Corruption 0% Temperature Cool (0) Movement Rolling (140) Ox4 Location -9/Mines Parts ------- > --- POWER (1) -------- (None) > --- PROPULSION (2) --- Aluminum Leg Wheel > --- UTILITY (2) ------ High-capacity Storage Unit Light Armor Plating > --- WEAPON (2) ------- Light Assault Rifle Light Assault Rifle > --- INVENTORY (20) --- Fission Core Light Fission Core Aluminum Leg High-capacity Matter Pod (200) Visual Processing Unit Small Laser Light Assault Rifle Light Assault Rifle Light Assault Rifle EMP Blaster Field Lobotomy Kit (5) Shock Trap Shock Trap Shock Trap Peak State ------------ > --- POWER ------------ Ion Engine > --- PROPULSION ------- Aluminum Leg Aluminum Leg > --- UTILITY ---------- High-capacity Storage Unit Improved Targeting Computer > --- WEAPON ----------- Medium Laser EMP Blaster > --- INVENTORY -------- Ion Engine Nuclear Core Fission Core Light Fission Core Aluminum Leg Aluminum Leg High-capacity Matter Pod Visual Processing Unit Light Armor Plating Light Armor Plating Light Armor Plating Small Laser Light Assault Rifle Light Assault Rifle Light Assault Rifle Light Assault Rifle Field Lobotomy Kit Shock Trap Shock Trap Shock Trap [Rating: 13] Favorites ----------- Power Ion Engine Engine Ion Engine Propulsion Aluminum Leg Leg Aluminum Leg Wheel Wheel Utility High-capacity Storage Unit Storage High-capacity Storage Unit Processor Improved Targeting Computer Protection Light Armor Plating Weapon Light Assault Rifle Energy Gun Medium Laser Ballistic Gun Light Assault Rifle Launcher EMP Blaster Build | -11 -10 -10 -10 -9 ------- Run | Jun Mat Min Exi Min Slots Evolved . | . . . . . Power . | . . . . . Propulsion . | . . . . . Utility . | . . . . . Weapon . | . . . . . Parts Attached 20 | 6 2 . . 12 Power 2 | 1 . . . 1 Engine 2 | 1 . . . 1 Core . | . . . . . Reactor . | . . . . . Propulsion 5 | 2 . . . 3 Treads . | . . . . . Leg 4 | 2 . . . 2 Wheel 1 | . . . . 1 Hover . | . . . . . Flight . | . . . . . Utility 6 | 1 2 . . 3 Device . | . . . . . Storage 2 | 1 1 . . . Processor 1 | . 1 . . . Hackware . | . . . . . Protection 3 | . . . . 3 Artifact . | . . . . . Weapon 7 | 2 . . . 5 Energy Gun 1 | 1 . . . . Energy Cannon . | . . . . . Ballistic Gun 4 | 1 . . . 3 Ballistic Cannon . | . . . . . Launcher 2 | . . . . 2 Special Weapon . | . . . . . Impact Weapon . | . . . . . Slashing Weapon . | . . . . . Piercing Weapon . | . . . . . Special Melee Weapon . | . . . . . Unidentified Prototypes . | . . . . . Parts Lost 7 | . . . . 7 Power 2 | . . . . 2 Propulsion 2 | . . . . 2 Utility 2 | . . . . 2 Weapon 1 | . . . . 1 Highest Loss Streak 5 | . . . . 5 To Critical Strikes . | . . . . . Average Slot Usage (%) 99 | . 97 100 100 98 Engine 13 | . 14 14 14 13 Leg 26 | . 28 28 28 20 Wheel 1 | . . . . 7 Storage 14 | . 14 14 14 14 Processor 11 | . 11 14 14 5 Protection 2 | . . . . 8 Energy Gun 11 | . 14 14 14 5 Ballistic Gun 15 | . 14 14 14 20 Naked Turns . | . . . . . Heaviest Build 54 | 13 48 48 48 54 Greatest Support 20 | 20 20 20 20 20 Greatest Overweight (x) 4 | . 2 2 2 4 Average Overweight (x) 2 | . . 2 2 3 Largest Inventory Capacity 20 | 8 20 20 20 20 Average Capacity 18 | 6 12 20 20 20 Most Carried 20 | 6 9 16 20 20 Average Carried 14 | 4 7 13 19 16 Final Capacity 20 | 8 20 20 20 20 Final Carried 20 | 6 9 16 20 14 Class Distribution -------------------- 84% | Mutant 15% | Scavenger-Mutant Dominant Class ---------------- Mutant | -10/Materials Mutant | -10/Mines Mutant | -10/Exiles Scavenger-Mutant | -9/Mines Resources | -11 -10 -10 -10 -9 ----------- Run | Jun Mat Min Exi Min Matter Collected 398 | 217 69 15 . 97 Remotely . | . . . . . Salvage Created 400 | . 92 91 . 217 Parts 33 | . 6 12 . 15 Haulers Intercepted . | . . . . . Recyclers Shooed . | . . . . . Parts Field Recycled . | . . . . . Retrieved Matter . | . . . . . Parts Self-Destructed . | . . . . . Prevented . | . . . . . Kills | -11 -10 -10 -10 -9 ------- Run | Jun Mat Min Exi Min Combat Hostiles Destroyed 17 | . 2 6 . 9 Guns 14 | . 2 6 . 6 AOE 3 | . . . . 3 Classes Destroyed 6 | . 2 1 . 3 Worker 1 | . . . . 1 Operator 1 | . 1 . . . Swarmer 9 | . . 6 . 3 Grunt 5 | . 2 . . 3 Demolisher 1 | . . . . 1 Assembled 2 | . . . . 2 Best Kill Streak 3 | . 2 2 . 3 Combat Bots Only 3 | . 2 2 . 3 Max Kills in Single Turn 1 | . 1 1 . 1 Gunslinging . | . . . . . Exploded 1 | . . . . 1 Melee . | . . . . . Uniques/NPCs Destroyed . | . . . . . Combat | -11 -10 -10 -10 -9 -------- Run | Jun Mat Min Exi Min Damage Taken 1191 | . 23 185 . 983 Core 258 | . . 27 . 231 Absorbed by Shields . | . . . . . Core Remaining (%) 100 | 100 . . . . Volleys Fired 60 | . 6 16 . 38 Largest 2 | . 2 2 . 2 Hottest 70 | . 70 70 . 70 Shots Fired 111 | . 12 32 . 67 Gun 106 | . 12 32 . 62 Cannon . | . . . . . Launcher 5 | . . . . 5 Special . | . . . . . Kinetic 81 | . 6 16 . 59 Thermal 25 | . 6 16 . 3 Explosive . | . . . . . Electromagnetic 5 | . . . . 5 Robot Hit Streak 14 | . 9 14 . 6 Robot Miss Streak 3 | . 1 2 . 3 Penetration Max . | . . . . . Secondary Targets . | . . . . . Shots Hit Robots 65 | . 9 21 . 35 Core Hits 35 | . 6 8 . 21 Critical Kills . | . . . . . Critical Parts Destroyed 1 | . . . . 1 Critical Strikes 3 | . . 2 . 1 Burn 2 | . . 2 . . Destroy 1 | . . . . 1 Melee Attacks . | . . . . . Impact . | . . . . . Slashing . | . . . . . Piercing . | . . . . . Sneak Attacks . | . . . . . Combat Hostiles . | . . . . . Follow-up Attacks . | . . . . . Damage Inflicted 825 | . 89 230 . 506 Guns 623 | . 89 230 . 304 Cannons . | . . . . . Explosions 202 | . . . . 202 Melee . | . . . . . Ramming . | . . . . . Kinetic 387 | . 27 81 . 279 Thermal 273 | . 62 149 . 62 Explosive . | . . . . . Electromagnetic 165 | . . . . 165 Impact . | . . . . . Slashing . | . . . . . Piercing . | . . . . . Highest Corruption . | . . . . . Average Corruption . | . . . . . Corruption Purged . | . . . . . Corruption Blocked . | . . . . . Overload Shots . | . . . . . Overflow Damage . | . . . . . Projectiles . | . . . . . Explosions . | . . . . . Melee . | . . . . . Knockbacks . | . . . . . Impact . | . . . . . Kinetic . | . . . . . Secondary . | . . . . . Self-Inflicted Damage 4 | . . . . 4 Shots 1 | . . . . 1 Rammed . | . . . . . Targets Rammed . | . . . . . Kicked . | . . . . . Crushed . | . . . . . Highest Temperature 130 | . 60 130 . 62 Average Temperature 26 | . 25 47 . 11 Received Heat Transfer 111 | . 12 . . 99 Siege Activations . | . . . . . Robots Corrupted . | . . . . . Combat Hostiles . | . . . . . Parts Fried . | . . . . . Impact Corruptions . | . . . . . Robots Melted . | . . . . . Combat Hostiles . | . . . . . Parts Melted 1 | . . 1 . . Heat Transferred 901 | . 185 592 . 124 Parts Sabotaged . | . . . . . Parts Stolen . | . . . . . Parts Stripped . | . . . . . Power Chain Reactions 1 | . . . . 1 Missiles Intercepted . | . . . . . Alert | -11 -10 -10 -10 -9 ------- Run | Jun Mat Min Exi Min Peak Influence 150 | . 80 150 . 122 Initial 31 | . . 31 . . Average 67 | . 38 89 . 54 Maximum Alert Level . | . . . . . Low Security (%) 100 | 100 100 100 . 100 Level 1 . | . . . . . Level 2 . | . . . . . Level 3 . | . . . . . Level 4 . | . . . . . Level 5 . | . . . . . High Security . | . . . . . Max Security . | . . . . . Squads Dispatched 3 | . 3 . . . Investigation . | . . . . . Extermination . | . . . . . Reinforcement 3 | . 3 . . . Assault . | . . . . . Garrison . | . . . . . Intercept . | . . . . . Searches Triggered . | . . . . . Construction Impeded . | . . . . . Haulers Reinforced . | . . . . . Active Scanning Responses . | . . . . . Cargo Convoy Interrupts . | . . . . . Stealth | -11 -10 -10 -10 -9 --------- Run | Jun Mat Min Exi Min Distress Signals 1 | . 1 . . . Communications Jammed . | . . . . . Distress Signals . | . . . . . Times Spotted 30 | . 7 8 . 15 Peak Tracking Total 4 | . 4 2 . 4 Tactical Retreats 5 | . . 2 . 3 Traps | -11 -10 -10 -10 -9 ------- Run | Jun Mat Min Exi Min Traps Triggered . | . . . . . Indirectly . | . . . . . Trap Hack Attempts . | . . . . . Triggered . | . . . . . Disarmed . | . . . . . Reprogrammed . | . . . . . Reused . | . . . . . Traps Extracted . | . . . . . Installed . | . . . . . Triggered . | . . . . . Most Traps Carried 3 | . . 3 3 3 Exploded 1 | . . . . 1 Machines | -11 -10 -10 -10 -9 ---------- Run | Jun Mat Min Exi Min Machines Disabled . | . . . . . Max in Single Turn . | . . . . . Machines Repaired . | . . . . . Machines Sabotaged . | . . . . . Overloaded Fab Kills . | . . . . . Hacking | -11 -10 -10 -10 -9 --------- Run | Jun Mat Min Exi Min Machines Accessed 2 | . . . 2 . Terminals . | . . . . . Fabricators . | . . . . . Repair Stations . | . . . . . Recycling Units . | . . . . . Scanalyzers . | . . . . . Garrison Access . | . . . . . Total Hacks 5 | . . . 5 . Successful 5 | . . . 5 . Failed . | . . . . . Catastrophic . | . . . . . Database Lockouts . | . . . . . Manual 1 | . . . 1 . Terminals . | . . . . . Fabricators . | . . . . . Repair Stations . | . . . . . Recycling Units . | . . . . . Scanalyzers . | . . . . . Garrison Access . | . . . . . Terminal Hacks 5 | . . . 5 . Record 4 | . . . 4 . EX-Prototype ID Bank 1 | . . . 1 . Fabricator Hacks . | . . . . . Repair Station Hacks . | . . . . . Recycling Unit Hacks . | . . . . . Scanalyzer . | . . . . . Garrison Access Hacks . | . . . . . Unauthorized Hacks . | . . . . . Terminals . | . . . . . Fabricators . | . . . . . Repair Stations . | . . . . . Recycling Units . | . . . . . Scanalyzers . | . . . . . Garrison Access . | . . . . . Data Cores Recovered . | . . . . . Used . | . . . . . Hacking Detections . | . . . . . Full Trace Events . | . . . . . Feedback Events . | . . . . . Feedback Blocked . | . . . . . Robot Schematics Acquired . | . . . . . Robots Built . | . . . . . Authchips . | . . . . . Time . | . . . . . Total Robot Build Rating . | . . . . . Part Schematics Acquired . | . . . . . Parts Built . | . . . . . Authchips . | . . . . . Time . | . . . . . Total Part Build Rating . | . . . . . Parts Repaired . | . . . . . Time . | . . . . . Parts Recycled . | . . . . . Recycled Matter . | . . . . . Retrieved Matter . | . . . . . Retrieved Components . | . . . . . Parts Scanalyzed . | . . . . . Part Schematics Acquired . | . . . . . Parts Damaged . | . . . . . Bothacking | -11 -10 -10 -10 -9 ------------ Run | Jun Mat Min Exi Min Used RIF Installer . | . . . . . Robots Hacked . | . . . . . Non-combat . | . . . . . Combat . | . . . . . Robot Hacks Applied . | . . . . . Relay Couplers Released . | . . . . . Fabnet Peak Effective % . | . . . . . Robots Rewired . | . . . . . Allies Hacked . | . . . . . Hacks Repelled . | . . . . . Allies | -11 -10 -10 -10 -9 -------- Run | Jun Mat Min Exi Min Total Allies 2 | . . 2 . . Largest Group 2 | . . 2 2 . Highest-Rated Group 45 | . . 45 45 . Highest-Rated Ally 31 | . . 31 31 . Total Orders . | . . . . . Ally Attacks . | . . . . . Total Damage . | . . . . . Kills . | . . . . . Allies Corrupted . | . . . . . Allies Melted . | . . . . . Intel | -11 -10 -10 -10 -9 ------- Run | Jun Mat Min Exi Min Robot Analysis Total . | . . . . . Derelict Logs Recovered 1 | . . 1 . . Drone Launches . | . . . . . Drone Recoveries . | . . . . . Exploration | -11 -10 -10 -10 -9 ------------- Run | Jun Mat Min Exi Min Turns Passed 2229 | 64 240 830 544 551 Spaces Moved 878 | 45 123 280 208 222 Core 6 | 6 . . . . Treads . | . . . . . Legs 734 | 39 123 280 208 84 Wheels 138 | . . . . 138 Hover . | . . . . . Flight . | . . . . . Fastest Speed 50 | 50 120 260 260 140 Average Speed 219 | 110 162 260 260 186 Slowest Speed 400 | 120 260 260 260 400 Overloaded Moves . | . . . . . Propulsion Burnouts . | . . . . . Robots Hopped . | . . . . . Cave-ins Triggered . | . . . . . Exploration Rate (%) 34 | 3 27 54 60 27 Regions Visited 4 Branch Regions 3 Pre-discovered Areas 2 | . . . 1 1 Known Exits Taken . | . . . . . Unknown Exits Taken 4 | 1 1 1 1 . Scrap Searched 1 | . . . . 1 Spaces Dug . | . . . . . Terrain Destroyed 2 | . . . . 2 Melee . | . . . . . Projectile . | . . . . . AOE 2 | . . . . 2 Terrain Rammed . | . . . . . Walls Destroyed . | . . . . . Machines Disabled . | . . . . . Actions | -11 -10 -10 -10 -9 --------- Run | Jun Mat Min Exi Min Total 1086 | 56 156 354 212 308 Wait 94 | . 14 52 1 27 Move 874 | 44 122 279 207 222 Hop . | . . . . . Pick Up 27 | 6 7 7 4 3 Fast Attach 8 | 6 1 . . 1 Attach 8 | . . . . 8 Detach 3 | . . . . 3 Swap 4 | . 1 . . 3 Drop 8 | . 5 . . 3 Fire 60 | . 6 16 . 38 Melee . | . . . . . Ram . | . . . . . Kick . | . . . . . Crush . | . . . . . Escape Stasis . | . . . . . Rewire . | . . . . . Trap . | . . . . . Miscellaneous . | . . . . . Route ------- -11/Junkyard -10/Materials -10/Mines (discovered 3 exits: [*Mat x2] / *Exi) -10/Exiles -9/Mines History --------- Turn | Location | Event 6 | -11/Junkyard | Discovered new exit (range 16) 65 | -11/Junkyard | Entered Materials 256 | -10/Materials | Discovered new exit (range 16) 304 | -10/Materials | Build established: Mutant 305 | -10/Materials | Entered Mines 410 | -10/Mines | Discovered new exit (range 5) 589 | -10/Mines | Found a hidden stash of uninstalled traps 621 | -10/Mines | Discovered new exit (range 7) 995 | -10/Mines | Deemed a non-threat by the Exiles lab entrance 997 | -10/Mines | Discovered new exit (range 5) 1135 | -10/Mines | Entered Exiles 1135 | -10/Exiles | Accompanied by 2 allies 1165 | -10/Exiles | Led the pair of lost Derelicts to a safe place 1203 | -10/Exiles | Met 8R-AWN 1245 | -10/Exiles | Met EX-HEX 1318 | -10/Exiles | Met EX-BIN 1349 | -10/Exiles | Aligned with FarCom system 1352 | -10/Exiles | Given EX-Vault access code 1411 | -10/Exiles | Opened EX-Vault 1424 | -10/Exiles | Found Field Lobotomy Kit 1477 | -10/Exiles | Warned to stay clear of 0b10 Research branches 1517 | -10/Exiles | Exiles lab attacked by MAIN.C 1582 | -10/Exiles | Learned location of Zion (-7) 1658 | -10/Exiles | Discovered new exit (range 10) 1679 | -10/Exiles | Left Exiles lab with Field Lobotomy Kit 1679 | -10/Exiles | Entered Mines 1836 | -9/Mines | Assembled infested the area 1849 | -9/Mines | Learned location of Storage (-7) 1910 | -9/Mines | Core integrity fell below 50% 1921 | -9/Mines | Core integrity fell below 20% 1949 | -9/Mines | Lost 5 parts (1p2n1u1w) 2185 | -9/Mines | Build established: Scavenger-Mutant 2230 | -9/Mines | Destroyed by as-98472 with Assembled Rifle Last Messages --------------- 02018_ Destroyed Asb. F-torch. 02024_ Dropped Rigged Nuclear Core. 02034_ Dropped Rigged Fission Core. 02044_ Dropped Rigged Lgt. Fission Core. 02049_ The unstable cave ceiling collapses. 02058_ S-10 Pest destroyed. 02068_ Lgt. Armor Plating destroyed. 02070_ Destroyed Flight Unit. 02075_ S-10 Pest destroyed. 02078_ The unstable cave ceiling collapses. 02080_ Acquired 11 matter. 02081_ The unstable cave ceiling collapses. 02083_ Acquired 10 matter. 02088_ The unstable cave ceiling collapses. 02105_ Acquired Lgt. Assault Rifle. 02157_ Acquired Rigged Fission Core. 02168_ Acquired Rigged Lgt. Fission Core. 02195_ Acquired 10 matter. 02212_ as-07754 destroyed. 02222_ Ion Engine destroyed. Map ----- +----------------------------------------------------+ | ????????????##??#????????????????????????????????? | | ##??????#### ####???###??????????????????????????? | | #?????## ### #### ##?????????????????????????? | | #?????# # ## # #?????????????????????????? | | ########## ## #?????????????####??####??? | | = = ### #?????????????## #### ##?? | | ####### ## # ## #?????????????## ### | | #????##### # #??????#####??## | | #????# # # #### ###?????## #### | | ##????# ## #### #??????## ## ### | | ??????## # #????### #######?# | | ???????## ##*### #???## #???????### | | ????????######## #???# ##?????????# | | ???????????????# ##### ##??????????# | | ???????????????# ##???????????# | | ???????????????# ####????????????# | | ???????????????#######" #### ##???????????????# | | ??????????????????##""" #??## #????????????????# | | ??????????????????#!! #???# *##???????????????? | | ??????????????????# """##???# =*%#???????????????? | | ??????????????????# ## #???# =[#???????????????? | | ??????????????????# ####### """ #????????????### | | ??????????????????# #### %""" ???????????## | | ??????????????????# a *""" ##??????????# | | ??????????????????##### % ##???????????# | | ??????????????????????## @#### ###????????????# = | | ???????????????????????####???????????????????## = | | ???????????????????????????????????????????????# | | ???????????????????????????????????????????????### | | ?????????????????????????????????????????????????? | | ?????????????????????????????????????????????????? | | ?????????????????????????????????????????????????? | | ?????????????????????????????????????????????????? | | ?????????????????????????????????????????????????? | | ?????????????????????????????????????????????????? | | ?????????????????????????????????????????????????? | | ?????????????????????????????????????????????????? | | ?????????????????????????????????????????????????? | | ?????????????????????????????????????????????????? | | ?????????????????????????????????????????????????? | | ?????????????????????????????????????????????????? | | ?????????????????????????????????????????????????? | | ?????????????????????????????????????????????????? | | ?????????????????????????????????????????????????? | | ?????????????????????????????????????????????????? | | ?????????????????????????????????????????????????? | | ?????????????????????????????????????????????????? | | ?????????????????????????????????????????????????? | | ?????????????????????????????????????????????????? | | ?????????????????????????????????????????????????? | +----------------------------------------------------+ Best States ------------- Heat Dissipation 25 Energy Generation 10 Energy Capacity 250 Matter Stores 300 Matter Capacity 300 Sight Range 16 Terrain Scan Density 10 Armor Coverage 150 Evasion (%) 55 Targeting Accuracy 6 Item Schematics ----------------- None Robot Schematics ------------------ None Fabricated ------------ Nothing Alien Tech Used ----------------- None Achievements -------------- None Challenges ------------ None Game ------ Seed ImprinterAssaultAutohacker Manual? 0 Play Time 00:15:24 Cumulative 311.7 hours Start 2023.03.12 @ 12:33:33 End 2023.03.12 @ 12:45:01 Sessions 1 Manual Loads 0 Difficulty Rogue Special Mode None Game No. 214 Rogue 214 Adventurer 0 Explorer 0 Win Type - Total 19 Types 16/0/2/1/0/0/0/0/0 Lore% 69 Gallery% 84 Achievement% 65 Wizard Run 0 Options --------- ASCII 0 Keyboard 1 Movement Numpad Keybinds 0 Fullscreen 2 Font 18/SmallcapsGlow Map View 76x50 Tactical HUD 1 Map Filters NONE Filters NONE Steam 1 RUN: 9306e104-6498-482c-8bc2-54d663a5a545